bitfinex-derivatives/quotes_ETHF0:USTF0_20251126
["timestamp","ask_amount","ask_price","bid_price","bid_amount"]
[1764129241265,2.75503973,2931.6,2931.5,2.4127679]
[1764129241964,0.94365329,2931.6,2931.5,2.4127679]
[1764129242264,2.75497846,2931.6,2931.5,2.4127679]
[1764129242762,0.94365329,2931.6,2931.5,2.4127679]
[1764129243765,2.75481268,2931.6,2931.5,2.4127679]
[1764129243967,0.94365329,2931.6,2931.5,2.4127679]
[1764129244165,2.75482616,2931.6,2931.5,2.4127679]
[1764129244365,2.75482616,2931.6,2931.5,1.5974679]
[1764129244767,0.94365329,2931.6,2931.5,2.6662679]
[1764129249169,2.75591928,2931.6,2931.5,2.6662679]
[1764129252364,1.81226599,2931.7,2931.6,1.0688]
[1764129252563,2.70218982,2931.7,2931.6,1.0688]
[1764129252761,2.70218982,2931.7,2931.6,2.0564679]
[1764129254274,0.88992383,2931.7,2931.6,2.0564679]
[1764129255066,0.88992383,2931.7,2931.6,0.9876679]
[1764129255067,2.70218982,2931.7,2931.6,0.9876679]
[1764129255368,0.88992383,2931.7,2931.6,0.9876679]
[1764129258572,1.72015976,2931.7,2931.6,0.9876679]
[1764129258771,1.71934214,2931.7,2931.6,0.9876679]
[1764129259785,1.71934214,2931.7,2930.5,0.48668635]
[1764129259786,14.14170475,2931.7,2928.0,9.68588679]
[1764129259977,1.66047186,2928.1,2926.0,10.4407129]
[1764129260175,0.83023593,2926.4,2926.2,7.36743003]
[1764129260571,0.92328898,2926.3,2926.2,7.36743003]
[1764129260877,3.32740206,2926.3,2926.2,0.003801]
[1764129261081,3.32740206,2926.3,2926.2,12.11115949]
[1764129261280,0.92701287,2926.3,2926.2,12.11115949]
[1764129261982,0.92701287,2926.3,2926.2,0.003801]
[1764129262271,0.92701287,2926.3,2926.2,20.55438952]
[1764129263185,3.32740206,2926.3,2926.2,20.55438952]
[1764129263879,0.92701287,2926.3,2926.2,20.55438952]
[1764129264279,0.00512453,2926.5,2926.4,1.0758]
[1764129264579,4.20068109,2927.8,2927.0,0.6089]
[1764129264771,1.3492262,2927.6,2927.0,0.6089]
[1764129264972,1.3492262,2927.6,2927.0,4.97071901]
[1764129265480,1.35288685,2927.6,2927.0,4.97071901]
[1764129266074,1.34848183,2927.3,2927.0,4.97071901]
[1764129266270,0.17089,2927.2,2926.5,6.75317511]
[1764129266474,1.34848183,2926.8,2926.6,4.36181901]
[1764129266880,1.34848183,2926.8,2926.6,16.4691775]
[1764129268181,1.34848183,2926.8,2926.6,12.10735849]
[1764129269388,1.34848183,2926.8,2926.7,12.10735849]
[1764129269888,1.34848183,2926.8,2926.7,5.64285756]
[1764129270084,1.51939183,2926.8,2926.7,9.32217691]
[1764129270286,1.51939183,2926.8,2926.7,5.78044578]
[1764129270481,1.51939183,2926.8,2926.7,4.70464578]
[1764129271384,4.20068109,2927.0,2926.9,1.0758]
[1764129271585,4.20068109,2927.0,2926.9,1.41862677]
[1764129271776,4.20068109,2927.2,2927.0,0.6089]
[1764129271981,4.20068109,2927.2,2927.1,0.34282677]
[1764129272182,1.34848183,2927.3,2927.1,0.34282677]
[1764129272183,1.34848183,2927.3,2927.2,1.0758]
[1764129272382,1.34848183,2927.3,2927.2,1.41862677]
[1764129273385,0.17089,2927.2,2927.0,4.97071901]
[1764129273585,3.11015669,2927.2,2927.0,4.97071901]
[1764129273791,3.11015669,2927.2,2927.1,0.34282677]
[1764129274087,2.93926669,2927.3,2927.2,1.0758]
[1764129274387,0.00366065,2927.6,2927.5,0.6089]
[1764129274579,0.00366065,2927.6,2927.5,0.95172677]
[1764129274786,0.00366065,2927.6,2927.3,3.46710561]
[1764129275091,4.11580672,2927.5,2927.3,3.46710561]
[1764129275280,4.11946737,2927.6,2927.5,0.6089]
[1764129275791,4.11946737,2927.6,2927.5,0.38306961]
[1764129275994,4.11946737,2927.6,2927.5,0.99196961]
[1764129276187,0.00366065,2927.6,2927.5,0.99196961]
[1764129276387,1.1152276,2927.6,2927.5,0.99196961]
[1764129276587,1.2860876,2927.6,2927.5,0.6089]
[1764129277297,5.40189432,2927.6,2927.5,0.6089]
[1764129277986,5.40189432,2927.6,2927.5,0.99196961]
[1764129278292,1.2860876,2927.6,2927.5,0.99196961]
[1764129279290,1.2860876,2927.6,2927.5,2.06776961]
[1764129279984,1.2860876,2927.6,2927.5,0.6089]
[1764129280683,0.17089,2927.2,2927.1,5.44244766]
[1764129280893,4.23176668,2927.2,2927.1,5.44244766]
[1764129281192,1.28245695,2927.2,2927.1,6.51824766]
[1764129281881,1.28245695,2927.2,2927.1,2.8251553]
[1764129282083,4.23517893,2927.2,2927.1,2.8251553]
[1764129282283,1.28245695,2927.2,2927.1,2.8251553]
[1764129283089,4.23850475,2927.2,2927.1,2.8251553]
[1764129284179,1.28245695,2927.2,2927.1,2.8251553]
[1764129285480,1.28245695,2927.2,2925.6,0.17098]
[1764129285481,1.11156695,2927.2,2926.0,0.00512453]
[1764129285682,0.17105,2924.4,2922.0,1.5801]
[1764129285885,1.25284173,2922.9,2922.0,1.5801]
[1764129286195,1.03388193,2922.8,2922.7,1.0248]
[1764129286401,7.08470841,2923.8,2923.2,1.5801]
[1764129286688,2.372049,2923.4,2923.2,1.58876856]
[1764129287286,2.372049,2923.5,2923.2,1.58876856]
[1764129287490,2.372049,2923.4,2923.2,1.58876856]
[1764129287688,2.372049,2923.5,2923.2,1.58876856]
[1764129288190,2.37687305,2923.3,2923.2,2.61356856]
[1764129288395,2.37687305,2923.4,2923.3,1.0248]
[1764129289397,2.96890169,2923.6,2923.2,1.58876856]
[1764129289695,2.96890169,2923.6,2923.5,1.0248]
[1764129289891,0.0078163,2923.8,2923.5,1.0248]
[1764129290094,0.0078163,2923.8,2923.7,1.0248]
[1764129292998,3.6351227,2924.3,2923.8,1.5801]
[1764129293895,3.63819919,2924.3,2923.8,1.5801]
[1764129295198,1.25591822,2924.3,2923.8,1.5801]
[1764129295592,3.63819919,2924.3,2923.8,1.5801]
[1764129295798,2.38228097,2924.2,2923.8,1.5801]
[1764129296192,3.63819919,2924.3,2923.8,1.5801]
[1764129296392,2.38228097,2924.2,2923.8,1.5801]
[1764129296593,1.07936541,2923.9,2923.8,1.5801]
[1764129296794,1.07936541,2923.9,2923.8,2.6049]
[1764129298295,2.03355535,2923.9,2923.8,2.6049]
[1764129299300,0.00307649,2924.3,2923.8,1.5801]
[1764129299597,0.00307649,2924.3,2924.1,1.0248]
[1764129299598,0.95413041,2924.2,2924.1,1.0248]
[1764129301299,2.38228097,2924.8,2923.8,1.5801]
[1764129301300,2.38228097,2924.9,2924.8,2.8206]
[1764129301498,2.38228097,2924.9,2924.5,1.6908]
[1764129301499,2.38228097,2925.7,2925.3,2.8206]
[1764129301897,3.46164638,2925.9,2925.3,2.8206]
[1764129302100,1.07936541,2925.9,2925.3,2.8206]
[1764129302300,4.524e-05,2925.5,2925.0,1.6908]
[1764129302503,4.524e-05,2925.5,2925.4,2.8206]
[1764129302799,0.004141,2925.9,2925.8,2.8206]
[1764129304202,4.1e-05,2925.9,2925.8,2.8206]
[1764129304403,0.17092,2926.6,2925.8,2.8206]
[1764129304803,1.07936541,2926.7,2925.8,2.8206]
[1764129305304,1.08338736,2926.7,2925.8,2.8206]
[1764129306309,1.07936541,2925.9,2925.8,2.8206]
[1764129308612,2.86401172,2925.9,2925.8,2.8206]
[1764129310208,1.07936541,2925.9,2925.8,2.8206]
[1764129310614,2.86602214,2925.9,2925.8,2.8206]
[1764129310808,1.07936541,2925.9,2925.8,2.8206]
[1764129311210,2.86633014,2925.9,2925.8,2.8206]
[1764129311915,5.47663014,2925.9,2925.5,1.6908]
[1764129312111,1.78696473,2925.8,2925.0,1.69418307]
[1764129312410,1.78696473,2925.6,2925.5,2.5736]
[1764129313317,0.94167565,2925.6,2925.5,2.5736]
[1764129313914,0.94167565,2925.6,2925.5,4.1789]
[1764129315213,0.94167565,2925.6,2925.0,1.69418307]
[1764129315413,0.94167565,2925.5,2925.4,2.5736]
[1764129315618,0.94167565,2925.7,2925.4,2.5736]
[1764129315811,0.94167565,2925.6,2925.4,2.5736]
[1764129316008,0.94167565,2925.5,2925.4,2.5736]
[1764129316313,2.13570049,2925.7,2925.4,2.5736]
[1764129316518,0.94167565,2925.6,2925.4,2.5736]
[1764129317114,0.94167565,2925.6,2925.5,4.1789]
[1764129317517,1.19402484,2925.8,2925.5,4.1789]
[1764129317717,2.13570049,2925.8,2925.5,4.1789]
[1764129317918,0.94167565,2925.7,2925.5,4.1789]
[1764129318121,0.94167565,2925.6,2925.5,4.1789]
[1764129318520,2.13570049,2925.9,2925.5,4.1789]
[1764129318818,1.19402484,2925.9,2925.7,2.5736]
[1764129319023,1.19402484,2926.6,2926.2,2.5736]
[1764129319220,2.2774122,2926.7,2926.2,2.5736]
[1764129319517,1.08338736,2926.7,2926.2,2.5736]
[1764129321727,1.08338736,2926.7,2926.6,2.5736]
[1764129322220,0.00402195,2926.7,2926.6,2.5736]
[1764129323518,1.19402484,2927.4,2927.3,2.5736]
[1764129323715,4.03362484,2927.5,2927.4,2.5736]
[1764129324434,2.8396,2927.5,2927.4,2.5736]
[1764129324622,2.84276966,2927.5,2927.4,2.57638828]
[1764129324925,0.00316966,2927.5,2927.4,2.57638828]
[1764129325223,1.19402484,2927.9,2927.6,2.5736]
[1764129325426,1.36486484,2928.1,2927.6,2.5736]
[1764129326327,1.36856837,2928.1,2927.6,2.5736]
[1764129327124,2.8396,2927.6,2927.4,0.00278828]
[1764129327326,2.8396,2927.5,2927.4,0.00278828]
[1764129327530,4.3718,2927.5,2927.4,0.00278828]
[1764129329123,2.8396,2927.5,2927.4,0.00278828]
[1764129329318,1.79860983,2927.5,2927.4,2.57638828]
[1764129330220,4.63820983,2927.5,2927.4,0.00278828]
[1764129330726,6.17040983,2927.5,2926.5,1.6053]
[1764129330932,4.03841263,2926.6,2926.1,0.00512453]
[1764129331230,2.14129985,2926.5,2926.1,0.00512453]
[1764129331431,3.78208722,2926.4,2926.3,2.5736]
[1764129331635,4.98089985,2926.4,2926.1,0.00512453]
[1764129331933,0.94248722,2926.3,2926.1,0.00942729]
[1764129332133,0.94248722,2926.2,2926.1,2.58302729]
[1764129332330,0.94248722,2926.3,2926.1,2.58302729]
[1764129332526,0.94248722,2926.2,2926.1,2.58302729]
[1764129332729,0.94248722,2926.3,2926.1,2.58302729]
[1764129332927,0.94248722,2926.2,2926.1,2.58302729]
[1764129333123,0.94248722,2926.3,2926.1,2.58302729]
[1764129333327,0.94248722,2926.2,2926.1,2.58302729]
[1764129333526,1.19881263,2926.4,2926.2,2.5736]
[1764129333737,0.94339023,2926.3,2926.2,2.5736]
[1764129334138,4.98180286,2926.3,2926.2,2.5736]
[1764129334330,5.58160006,2926.3,2926.2,2.5736]
[1764129335032,2.74200006,2926.3,2926.2,2.5736]
[1764129338636,2.14297488,2926.3,2926.2,2.5736]
[1764129340435,0.94339023,2926.3,2926.2,2.5736]
[1764129341842,1.19958465,2926.9,2926.8,2.6522]
[1764129342243,2.97968134,2927.0,2926.9,2.6522]
[1764129342640,1.78009669,2927.0,2926.9,2.6522]
[1764129345956,4.48459669,2927.0,2926.5,0.8811]
[1764129346248,1.05707571,2927.4,2927.3,2.6522]
[1764129346452,1.5322,2928.0,2927.0,1.3653]
[1764129346453,4.41017524,2928.0,2927.5,2.6522]
[1764129346751,2.7045,2927.6,2927.5,2.6522]
[1764129346947,2.7045,2927.6,2927.0,1.3653]
[1764129347155,1.79860983,2927.9,2927.5,2.6522]
[1764129348450,2.7045,2927.6,2927.5,2.6522]
[1764129351649,2.7045,2927.6,2927.0,1.3653]
[1764129351854,4.2111,2927.5,2927.4,2.6522]
[1764129352148,2.7045,2927.5,2927.4,2.6522]
[1764129352946,0.17085,2927.8,2927.4,2.6522]
[1764129353951,0.93946131,2927.7,2927.4,2.6522]
[1764129354149,2.7045,2927.7,2927.6,2.6522]
[1764129354353,3.64386175,2927.7,2927.6,2.6522]
[1764129354852,4.2111,2927.0,2926.9,2.6522]
[1764129355049,1.5066,2927.5,2927.4,2.6522]
[1764129355249,0.93936567,2927.5,2927.4,2.6522]
[1764129359263,0.17086,2927.8,2927.4,2.6522]
[1764129359562,3.64384855,2927.7,2927.6,2.6522]
[1764129363156,3.64384855,2927.7,2927.0,1.3653]
[1764129363356,3.19204855,2927.6,2927.5,2.387]
[1764129364565,1.4272,2927.5,2927.0,1.3653]
[1764129364764,1.4272,2927.5,2926.5,1.05202]
[1764129365063,0.93926699,2927.4,2926.5,0.8811]
[1764129365363,0.93947628,2927.3,2926.5,0.8811]
[1764129365566,0.93947628,2927.2,2926.5,0.8811]
[1764129365768,2.49837736,2927.5,2926.5,0.8811]
[1764129365968,0.93947582,2927.4,2927.3,2.387]
[1764129367374,3.15300736,2927.8,2927.7,2.387]
[1764129367674,4.09328998,2927.8,2927.7,2.387]
[1764129367875,1.84058998,2927.8,2927.7,2.387]
[1764129368170,1.70304,2928.0,2927.5,1.4032]
[1764129368171,1.07114736,2928.0,2927.9,2.387]
[1764129368370,2.0119538,2928.0,2927.9,2.387]
[1764129368573,1.8411138,2928.0,2927.9,2.387]
[1764129368775,0.94080644,2928.0,2927.9,2.387]
[1764129369779,3.19350644,2928.0,2927.9,2.387]
[1764129370077,4.62070644,2928.0,2927.9,2.387]
[1764129370280,5.5210138,2928.0,2927.9,2.387]
[1764129371269,4.62070644,2928.0,2927.9,2.387]
[1764129372172,2.2879,2927.8,2927.7,2.33182453]
[1764129372372,3.22870644,2927.8,2927.7,2.33182453]
[1764129372577,0.94080644,2927.8,2927.7,2.33182453]
[1764129372878,4.13428232,2927.9,2927.8,2.3267]
[1764129374476,2.2879,2927.8,2927.7,0.00512453]
[1764129374678,6.28165184,2927.8,2927.7,0.00512453]
[1764129375176,6.28165184,2927.8,2925.9,12.304]
[1764129375177,0.17088,2927.3,2925.5,4.37084385]
[1764129375375,4.45582754,2927.0,2925.5,1.3131]
[1764129375572,4.45582754,2927.0,2926.8,2.3267]
[1764129375573,1.84618909,2926.9,2926.8,2.3267]
[1764129375780,0.94266155,2926.9,2926.8,2.3267]
[1764129376175,3.23056155,2926.9,2926.8,2.3267]
[1764129377278,3.23056155,2926.9,2926.6,0.00512453]
[1764129377480,3.23056155,2926.8,2926.7,2.3267]
[1764129378383,0.94266155,2926.8,2926.7,2.3267]
[1764129378580,0.00512453,2927.1,2927.0,3.4604]
[1764129379377,0.94690762,2927.1,2927.0,3.4604]
[1764129380176,0.00512453,2927.1,2927.0,3.4604]
[1764129381476,0.00512453,2927.1,2927.0,9.4604]
[1764129381680,0.90297518,2927.8,2927.7,2.3267]
[1764129382188,0.94197814,2927.8,2927.5,1.3131]
[1764129382484,0.90297518,2928.0,2927.9,2.3267]
[1764129382684,5.39720824,2928.0,2927.1,1.545]
[1764129382884,0.94193306,2927.9,2927.0,4.3087]
[1764129383787,3.22983306,2927.9,2927.8,2.3267]
[1764129384376,3.22983306,2927.9,2927.0,1.1337]
[1764129384582,0.94193306,2927.8,2927.0,1.1337]
[1764129384781,1.2644,2928.0,2927.0,1.1337]
[1764129384979,0.94173549,2927.9,2927.0,1.1337]
[1764129385184,0.94173549,2927.8,2927.0,1.1337]
[1764129385384,1.2644,2928.0,2927.0,1.1337]
[1764129385585,0.94166003,2927.9,2927.0,1.1337]
[1764129385889,0.90667871,2928.1,2928.0,3.6398]
[1764129386085,0.94542397,2928.1,2928.0,3.6398]
[1764129386981,3.23323636,2928.1,2928.0,2.3267]
[1764129387187,0.94533636,2928.1,2928.0,2.3267]
[1764129387389,1.2644,2928.0,2927.0,1.1337]
[1764129387690,1.2644,2928.0,2927.1,1.233]
[1764129388191,0.00370353,2928.1,2928.0,2.3267]
[1764129388583,0.94503843,2928.1,2928.0,2.3267]
[1764129389386,3.23293843,2928.1,2927.5,0.2922]
[1764129389689,3.2292349,2928.0,2927.9,2.3267]
[1764129389891,0.9413349,2928.0,2927.9,2.3267]
[1764129390095,0.00370353,2928.1,2928.0,2.3267]
[1764129390492,0.94487421,2928.1,2928.0,2.3267]
[1764129391091,3.23277421,2928.1,2928.0,2.3267]
[1764129391686,0.94487421,2928.1,2928.0,2.3267]
[1764129392089,0.94487421,2928.1,2928.0,3.6398]
[1764129392282,0.00370353,2928.1,2928.0,3.6398]
[1764129398303,3.18972002,2928.9,2928.8,2.3267]
[1764129398496,0.9404352,2928.9,2928.8,2.3267]
[1764129399405,0.94369264,2928.9,2928.8,2.32941908]
[1764129401299,0.00325744,2928.9,2928.8,2.32941908]
[1764129403199,1.34011,2928.5,2926.6,4.2404737]
[1764129403402,1.07265002,2928.3,2926.5,1.67513]
[1764129403606,2.19143026,2928.2,2926.5,1.35513]
[1764129403808,1.1693,2928.0,2926.7,0.515]
[1764129404306,1.1693,2928.0,2927.2,0.00512453]
[1764129407212,0.93962853,2927.9,2927.2,0.00512453]
[1764129407418,1.1693,2928.0,2927.2,0.00512453]
[1764129407707,0.93731634,2927.9,2927.2,0.00512453]
[1764129407906,1.1693,2928.0,2927.2,0.00512453]
[1764129408107,0.93731631,2927.9,2927.2,0.00512453]
[1764129408409,1.1693,2928.0,2927.2,0.00512453]
[1764129408712,0.93781344,2927.9,2927.2,0.00512453]
[1764129408901,1.1693,2928.0,2927.2,0.00512453]
[1764129409106,0.93778836,2927.9,2927.2,0.00512453]
[1764129409304,3.09598836,2927.8,2927.7,2.307]
[1764129409506,1.1693,2928.0,2927.2,0.00512453]
[1764129409707,0.93802086,2927.9,2927.2,0.00512453]
[1764129409909,1.1693,2928.0,2927.2,0.00512453]
[1764129410211,0.93804143,2927.9,2927.2,0.00512453]
[1764129410409,1.1693,2928.0,2927.2,0.00512453]
[1764129410604,0.93834403,2927.9,2927.2,0.00512453]
[1764129410905,1.1693,2928.0,2927.2,0.00512453]
[1764129411110,0.90182002,2928.3,2928.1,2.307]
[1764129411308,0.90182002,2928.3,2927.5,0.7749]
[1764129411309,3.99861592,2928.3,2927.5,0.7749]
[1764129411510,0.9385959,2928.2,2927.5,0.7749]
[1764129411710,0.90182002,2928.3,2927.9,2.307]
[1764129411711,3.3275,2928.0,2927.9,2.307]
[1764129412102,4.2661152,2928.0,2927.9,2.307]
[1764129412710,3.3275,2928.0,2927.9,2.307]
[1764129413102,4.26608963,2928.0,2927.9,2.307]
[1764129413810,0.93858963,2928.0,2927.9,2.307]
[1764129414010,0.90182002,2928.4,2927.9,2.307]
[1764129414213,1.84008476,2928.3,2927.9,2.307]
[1764129414413,1.84008476,2928.3,2928.1,2.307]
[1764129414414,3.09646474,2928.2,2928.1,2.307]
[1764129414711,3.09646474,2928.2,2927.5,0.7749]
[1764129414911,3.3275,2928.0,2927.9,2.307]
[1764129415108,4.26610652,2928.0,2927.9,2.307]
[1764129415917,0.93860652,2928.0,2927.9,2.307]
[1764129416102,0.90182002,2928.3,2927.9,2.307]
[1764129416304,3.09686064,2928.2,2928.1,2.307]
[1764129418906,3.09686064,2928.2,2927.5,0.7749]
[1764129419113,1.1693,2928.0,2927.5,0.7749]
[1764129419514,3.3275,2928.0,2927.9,2.307]
[1764129419714,4.26609156,2928.0,2927.9,2.307]
[1764129419904,3.3275,2928.0,2927.9,2.307]
[1764129420309,3.06002002,2928.4,2928.3,2.307]
[1764129420514,3.99855287,2928.4,2928.3,2.307]
[1764129420813,3.99855287,2928.4,2927.5,0.7749]
[1764129421113,3.09673285,2928.3,2927.5,0.7749]
[1764129421311,2.1582,2928.3,2927.5,0.7749]
[1764129422212,2.1582,2928.3,2928.2,2.307]
[1764129422407,0.93861759,2928.3,2928.2,2.307]
[1764129422614,2.87971759,2928.3,2927.5,0.7749]
[1764129422817,1.9411,2928.3,2927.5,0.7749]
[1764129423018,2.68804459,2928.1,2928.0,1.9458]
[1764129423726,2.68804459,2928.3,2928.2,1.9458]
[1764129423930,3.62667055,2928.3,2928.2,1.9458]
[1764129424117,2.87972596,2928.3,2928.2,1.9458]
[1764129424421,3.1104,2928.5,2928.4,1.9458]
[1764129424732,4.04908185,2928.5,2927.8,0.74694459]
[1764129424930,0.93868185,2928.4,2927.8,0.74694459]
[1764129425120,1.1693,2928.5,2927.8,0.74694459]
[1764129425319,1.20441033,2928.8,2928.3,1.9458]
[1764129425523,0.00325744,2928.9,2928.8,1.9458]
[1764129425728,1.94435744,2928.9,2928.0,2.9401]
[1764129425927,1.94435744,2928.9,2928.4,1.9458]
[1764129425928,3.014,2928.5,2928.4,1.9458]
[1764129426630,0.74694459,2928.8,2928.4,1.9458]
[1764129427929,0.00325744,2928.9,2928.4,1.9458]
[1764129428232,0.74694459,2928.8,2928.4,1.9458]
[1764129428733,2.68804459,2928.8,2928.7,1.9458]
[1764129429033,2.68804459,2928.8,2928.0,1.52504459]
[1764129430031,1.9411,2928.8,2928.0,1.52504459]
[1764129430332,0.74694459,2928.7,2928.0,0.7781]
[1764129431729,0.74694459,2928.4,2927.7,0.17086]
[1764129433939,0.74694459,2928.4,2927.5,0.7749]
[1764129436442,0.74694459,2928.4,2927.2,1.78552453]
[1764129436443,1.8659,2927.3,2927.2,1.78552453]
[1764129436739,1.8659,2927.3,2927.2,0.00512453]
[1764129437128,1.09382453,2927.5,2927.3,1.7804]
[1764129437432,1.09382453,2927.5,2927.4,1.7804]
[1764129438136,1.8659,2927.3,2927.2,0.00512453]
[1764129438536,1.8659,2927.3,2927.2,1.78552453]
[1764129439441,1.09382453,2927.5,2927.2,1.78552453]
[1764129439643,1.8659,2927.3,2927.2,1.78552453]
[1764129439838,2.61284459,2927.3,2927.2,0.00512453]
[1764129441135,1.8659,2927.3,2927.2,0.00512453]
[1764129441341,1.8659,2927.3,2927.2,1.78552453]
[1764129442642,1.8659,2927.3,2925.7,3.05774385]
[1764129442643,1.0887,2927.0,2925.7,3.05774385]
[1764129442835,0.74694459,2926.8,2925.9,0.74694459]
[1764129443140,1.0887,2927.0,2926.2,0.74694459]
[1764129443736,1.09148123,2927.0,2926.3,0.00512453]
[1764129445737,0.00278123,2927.0,2926.9,1.7804]
[1764129447137,0.00512453,2927.5,2927.4,1.7804]
[1764129447743,2.89869049,2928.5,2927.5,0.7749]
[1764129448145,2.90128713,2928.5,2927.5,0.7749]
[1764129448737,0.00512453,2928.3,2927.5,0.7749]
[1764129448938,0.00512453,2928.3,2927.3,1.035]
[1764129450248,0.00512453,2928.3,2927.0,1.1066]
[1764129450450,0.00512453,2928.3,2927.3,2.325]
[1764129451948,0.00512453,2928.3,2927.2,2.598]
[1764129452151,0.00512453,2928.3,2927.0,1.1066]
[1764129452350,0.00512453,2928.3,2927.2,1.48]
[1764129453146,0.00512453,2928.3,2927.1,1.07]
[1764129454350,0.00512453,2928.3,2927.0,1.1066]
[1764129454750,2.16464684,2928.0,2926.5,0.7213]
[1764129454952,0.92824447,2927.9,2926.5,0.7213]
[1764129455150,2.16464684,2928.0,2926.5,0.7213]
[1764129455356,0.92820818,2927.9,2926.5,0.7213]
[1764129455654,1.0887,2928.0,2926.5,0.7213]
[1764129455844,0.92821068,2927.9,2926.5,0.7213]
[1764129456040,1.0887,2928.0,2926.5,0.7213]
[1764129456245,0.92820781,2927.9,2926.5,0.7213]
[1764129456451,1.0887,2928.0,2926.5,0.7213]
[1764129456651,0.9283096,2927.9,2926.5,0.7213]
[1764129456847,1.0887,2928.0,2926.5,0.7213]
[1764129457150,0.92887787,2927.9,2926.5,0.7213]
[1764129457350,0.92887787,2927.8,2926.5,0.7213]
[1764129457552,1.0887,2928.0,2926.5,0.7213]
[1764129457750,0.92901963,2927.9,2926.5,0.7213]
[1764129457950,0.92901963,2927.8,2926.5,0.89223]
[1764129458151,1.0887,2928.0,2926.5,0.89223]
[1764129458351,0.92920667,2927.9,2926.5,0.89223]
[1764129458550,1.0887,2928.0,2926.7,1.07594684]
[1764129460443,1.0887,2928.0,2926.8,0.17091]
[1764129461646,1.0887,2928.0,2927.0,0.7288]
[1764129462054,1.0887,2928.0,2927.1,0.52]
[1764129464151,2.8751,2928.0,2927.9,1.7516]
[1764129464549,0.00512453,2928.3,2927.9,1.7516]
[1764129464750,1.79152453,2928.3,2928.2,1.7516]
[1764129464950,1.79152453,2928.3,2927.8,0.00512453]
[1764129466655,2.7379,2928.0,2927.9,1.7516]
[1764129467250,1.7864,2927.9,2927.8,1.75672453]
[1764129467659,0.9515,2928.0,2927.9,1.7516]
[1764129468356,2.7379,2928.0,2927.9,1.7516]
[1764129468861,0.00512453,2928.3,2927.9,1.7516]
[1764129469060,1.79152453,2928.3,2928.2,1.7516]
[1764129469451,1.79152453,2928.3,2927.8,0.00512453]
[1764129470162,2.7379,2928.0,2927.9,1.7516]
[1764129471162,1.79152453,2928.3,2928.2,1.7516]
[1764129472461,1.7864,2928.2,2928.1,0.74699295]
[1764129472855,1.7864,2928.2,2928.1,2.49859295]
[1764129473456,1.7864,2928.2,2928.1,1.7516]
[1764129479961,1.7864,2927.9,2927.8,2.50371748]
[1764129480667,1.7864,2927.9,2927.8,1.75672453]
[1764129480867,0.9515,2928.0,2927.9,1.7516]
[1764129481174,2.7379,2928.0,2927.9,1.7516]
[1764129482773,1.4686,2927.9,2926.4,3.05774385]
[1764129482977,0.9533,2927.5,2926.5,0.71776009]
[1764129483585,0.9533,2927.5,2926.7,0.7282218]
[1764129483769,0.9533,2927.5,2926.8,0.00512453]
[1764129490285,2.4219,2927.5,2927.4,1.6267]
[1764129491487,2.4219,2927.5,2926.8,0.00512453]
[1764129493487,0.9515,2928.0,2927.4,1.5512]
[1764129496089,2.3952,2927.5,2927.2,0.825]
[1764129496290,2.3952,2927.5,2927.4,1.5512]
[1764129497090,0.8782,2927.5,2927.4,1.5512]
[1764129497293,0.9515,2928.0,2927.4,1.5512]
[1764129500297,0.8782,2927.5,2927.4,1.5512]
[1764129502096,0.8782,2927.5,2926.5,1.61691189]
[1764129502401,0.8782,2927.5,2926.9,4.475]
[1764129502594,0.8782,2927.5,2926.6,0.17092]
[1764129502795,0.8782,2927.5,2926.9,4.438]
[1764129503308,0.8782,2927.0,2926.8,1.55632453]
[1764129503600,1.517,2926.9,2926.8,0.00512453]
[1764129503900,1.517,2926.9,2926.8,1.55632453]
[1764129504604,1.517,2926.9,2926.8,0.00103963]
[1764129508801,0.8782,2927.0,2926.9,1.5512]
[1764129509009,2.3952,2927.0,2926.9,1.5512]
[1764129510606,0.8782,2927.5,2926.9,1.5512]
[1764129510813,0.92987232,2927.4,2926.9,1.5512]
[1764129511110,2.3952,2927.0,2926.9,1.5512]
[1764129511297,0.8782,2927.5,2926.9,1.5512]
[1764129512206,2.3952,2927.5,2927.4,1.5512]
[1764129513604,2.3952,2927.5,2926.8,0.00103963]
[1764129513904,2.3952,2927.5,2926.9,0.72]
[1764129516110,0.8782,2927.0,2926.8,0.00103963]
[1764129516308,1.517,2926.9,2926.8,0.00103963]
[1764129518014,0.8782,2927.0,2926.8,0.00103963]
[1764129518015,0.8782,2927.0,2926.9,1.5512]
[1764129518213,0.8782,2927.5,2926.9,1.5512]
[1764129518513,2.3952,2927.0,2926.9,1.5512]
[1764129520612,2.3952,2927.0,2926.8,0.00103963]
[1764129520613,1.517,2926.9,2926.8,0.00103963]
[1764129531829,1.5063,2926.3,2926.2,0.00397437]
[1764129532027,1.51060763,2926.3,2926.2,0.00397437]
[1764129533831,0.00430763,2926.3,2926.2,1.51337437]
[1764129534320,1.51060763,2926.3,2926.2,1.51337437]
[1764129534722,0.00430763,2926.3,2926.2,1.51337437]
[1764129534935,1.51060763,2926.3,2926.2,1.51337437]
[1764129536527,1.51060763,2926.3,2926.2,0.00397437]
[1764129536827,1.51060763,2926.3,2926.2,1.51337437]
[1764129541531,0.00430763,2926.3,2926.2,1.51337437]
[1764129544226,1.32480763,2926.3,2926.2,0.00397437]
[1764129544431,0.00430763,2926.3,2926.2,1.28747437]
[1764129546028,1.32480763,2926.3,2926.2,1.28747437]
[1764129546422,0.00430763,2926.3,2926.2,1.28747437]
[1764129550337,1.32480763,2926.3,2926.2,1.28747437]
[1764129550632,0.00430763,2926.3,2926.2,6.77947437]
[1764129551029,0.00512453,2926.5,2926.4,1.2835]
[1764129551230,0.00512453,2926.5,2926.4,2.03118759]
[1764129552022,0.00788375,2926.5,2926.4,2.03118759]
[1764129558541,0.8782,2927.0,2926.9,1.2202]
[1764129558736,0.8782,2927.0,2926.9,1.96788759]
[1764129559539,0.88190551,2927.0,2926.9,1.96788759]
[1764129560033,2.20540551,2927.0,2926.9,1.96788759]
[1764129560541,0.00370551,2927.0,2926.9,1.96788759]
[1764129560740,0.00512453,2927.2,2927.1,1.2202]
[1764129561033,0.00512453,2927.2,2927.1,1.96788759]
[1764129561836,1.3235,2926.9,2926.8,0.17091]
[1764129562031,1.3235,2926.9,2926.8,1.39111]
[1764129562432,1.3235,2926.9,2926.8,3.94411]
[1764129563241,1.3235,2926.9,2926.8,1.39111]